fUSD/lending_fUSD_20240501
["ID","MTS","AMOUNT","RATE_DAILY","PERIOD"]
[325164183,1714545061359,-1157.73,0.00012876,2]
[325164184,1714545061368,-531.21,0.00012876,2]
[325164185,1714545061378,-500.0,0.00012876,2]
[325164186,1714545061387,-500.0,0.00012876,2]
[325164187,1714545061397,-5462.45,0.00012876,2]
[325164188,1714545061408,-500.0,0.00012876,2]
[325164189,1714545061417,-1162.49,0.00012876,2]
[325164190,1714545061427,-500.0,0.00012876,2]
[325164191,1714545061437,-500.0,0.00012876,2]
[325164192,1714545061446,-718.2,0.00012876,2]
[325164193,1714545061455,-500.0,0.00012876,2]
[325164194,1714545061465,-7793.85,0.00012876,2]
[325164195,1714545061474,-500.0,0.00012876,2]
[325164196,1714545061484,-500.0,0.00012876,2]
[325164197,1714545061493,-500.0,0.00012876,2]
[325164198,1714545061503,-1485.5,0.00012876,2]
[325164199,1714545061512,-500.0,0.00012876,2]
[325164200,1714545061523,-1000.0,0.00012877,2]
[325164201,1714545061532,-1000.0,0.00012877,2]
[325164202,1714545061542,-1000.0,0.00012877,2]
[325164203,1714545061552,-1000.0,0.00012877,2]
[325164204,1714545061562,-1000.0,0.00012877,2]
[325164205,1714545061572,-1000.0,0.00012877,2]
[325164206,1714545061583,-1000.0,0.00012877,2]
[325164207,1714545061593,-1000.0,0.00012877,2]
[325164208,1714545061603,-1000.0,0.00012877,2]
[325164209,1714545061612,-1000.0,0.00012877,2]
[325164210,1714545061624,-1000.0,0.00012877,2]
[325164211,1714545061633,-1000.0,0.00012877,2]
[325164212,1714545061642,-1000.0,0.00012877,2]
[325164213,1714545061651,-1000.0,0.00012877,2]
[325164214,1714545061660,-1000.0,0.00012877,2]
[325164215,1714545061669,-1000.0,0.00012877,2]
[325164216,1714545061678,-1000.0,0.00012877,2]
[325164217,1714545061689,-1000.0,0.00012877,2]
[325164218,1714545061699,-1000.0,0.00012877,2]
[325164219,1714545061709,-1000.0,0.00012877,2]
[325164220,1714545061720,-1000.0,0.00012877,2]
[325164221,1714545061731,-1000.0,0.00012877,2]
[325164222,1714545061741,-1000.0,0.00012877,2]
[325164223,1714545061751,-1000.0,0.00012877,2]
[325164224,1714545061760,-1000.0,0.00012877,2]
[325164225,1714545061770,-1000.0,0.00012877,2]
[325164226,1714545061780,-1000.0,0.00012877,2]
[325164227,1714545061791,-1000.0,0.00012877,2]
[325164228,1714545061802,-1000.0,0.00012877,2]
[325164229,1714545061812,-1000.0,0.00012877,2]
[325164230,1714545061823,-1000.0,0.00012877,2]
[325164231,1714545061835,-1000.0,0.00012877,2]
[325164232,1714545061844,-1000.0,0.00012877,2]
[325164233,1714545061854,-1000.0,0.00012877,2]
[325164234,1714545061863,-1000.0,0.00012877,2]
[325164235,1714545061875,-1000.0,0.00012877,2]
[325164236,1714545061885,-1000.0,0.00012877,2]
[325164237,1714545061894,-1000.0,0.00012877,2]
[325164238,1714545061903,-1000.0,0.00012877,2]
[325164239,1714545061914,-1000.0,0.00012877,2]
[325164240,1714545061926,-1000.0,0.00012877,2]
[325164241,1714545061937,-1000.0,0.00012877,2]
[325164242,1714545061946,-1000.0,0.00012877,2]
[325164243,1714545061955,-1000.0,0.00012877,2]
[325164244,1714545061965,-1000.0,0.00012877,2]
[325164245,1714545061976,-1000.0,0.00012877,2]
[325164246,1714545061986,-1000.0,0.00012877,2]
[325164247,1714545061998,-1000.0,0.00012877,2]
[325164248,1714545062009,-1000.0,0.00012877,2]
[325164249,1714545062019,-1000.0,0.00012877,2]
[325164250,1714545062029,-1000.0,0.00012877,2]
[325164251,1714545062041,-1000.0,0.00012877,2]
[325164252,1714545062052,-1000.0,0.00012877,2]
[325164253,1714545062062,-1000.0,0.00012877,2]
[325164254,1714545062071,-1000.0,0.00012877,2]
[325164255,1714545062080,-1000.0,0.00012877,2]
[325164256,1714545062090,-1000.0,0.00012877,2]
[325164257,1714545062100,-1000.0,0.00012877,2]
[325164258,1714545062109,-1000.0,0.00012877,2]
[325164259,1714545062118,-1000.0,0.00012877,2]
[325164260,1714545062130,-1000.0,0.00012877,2]
[325164261,1714545062139,-1000.0,0.00012877,2]
[325164262,1714545062148,-1000.0,0.00012877,2]
[325164263,1714545062158,-1000.0,0.00012877,2]
[325164264,1714545062168,-1000.0,0.00012877,2]
[325164265,1714545062177,-1000.0,0.00012877,2]
[325164266,1714545062186,-603.0,0.00012877,2]
[325164267,1714545062196,-1000.0,0.00012877,2]
[325164268,1714545062205,-1000.0,0.00012877,2]
[325164269,1714545062215,-1000.0,0.00012877,2]
[325164270,1714545062225,-1000.0,0.00012877,2]
[325164271,1714545062235,-1000.0,0.00012877,2]
[325164272,1714545062244,-1000.0,0.00012877,2]
[325164273,1714545062254,-1000.0,0.00012877,2]
[325164274,1714545062264,-1000.0,0.00012877,2]
[325164275,1714545062273,-1000.0,0.00012877,2]
[325164276,1714545062283,-1000.0,0.00012877,2]
[325164277,1714545062292,-1000.0,0.00012877,2]
[325164278,1714545062301,-1000.0,0.00012877,2]
[325164279,1714545062310,-1000.0,0.00012877,2]
[325164280,1714545062320,-1000.0,0.00012877,2]
[325164281,1714545062329,-1000.0,0.00012877,2]
[325164282,1714545062339,-1000.0,0.00012877,2]
[325164283,1714545062348,-1000.0,0.00012877,2]
[325164284,1714545062358,-1000.0,0.00012877,2]
[325164285,1714545062368,-1000.0,0.00012877,2]
[325164286,1714545062380,-388.0,0.00012877,2]
[325164287,1714545062389,-151.0,0.00012877,2]
[325164288,1714545062398,-316.250237,0.00012877,2]
[325164289,1714545062407,-316.250237,0.00012877,2]
[325164290,1714545062417,-151.0,0.00012877,2]
[325164291,1714545062427,-151.0,0.00012877,2]
[325164292,1714545062437,-151.0,0.00012877,2]
[325164293,1714545062446,-407.236825,0.00012877,2]
[325164294,1714545062456,-407.236825,0.00012877,2]
[325164295,1714545062465,-151.0,0.00012877,2]
[325164296,1714545062475,-463.439166,0.00012877,2]
[325164297,1714545062486,-463.439166,0.00012877,2]
[325164298,1714545062496,-10000.0,0.00012877,2]
[325164299,1714545062506,-151.0,0.00012877,2]
[325164300,1714545062515,-151.0,0.00012877,2]
[325164301,1714545062525,-10000.0,0.00012877,2]
[325164302,1714545062535,-151.0,0.00012877,2]
[325164303,1714545062545,-151.0,0.00012877,2]
[325164304,1714545062554,-236.025786,0.00012877,2]
[325164305,1714545062564,-236.025786,0.00012877,2]
[325164306,1714545062574,-253.584891,0.00012877,2]
[325164307,1714545062584,-468.434218,0.00012877,2]
[325164308,1714545062593,-151.0,0.00012877,2]
[325164309,1714545062602,-468.434218,0.00012877,2]
[325164310,1714545062611,-351.257035,0.00012877,2]
[325164311,1714545062625,-351.257035,0.00012877,2]
[325164312,1714545062634,-1563.29807401,0.00012878,2]
[325164313,1714545062644,-155.17967655,0.00012878,2]
[325164314,1714545062653,-47636.29357801,0.00012878,2]
[325164315,1714545062663,-497.68349969,0.00012878,2]
[325164316,1714545062673,-155.18648239,0.00012878,2]
[325164317,1714545062682,-975.57266143,0.00012878,2]
[325164318,1714545062692,-2999.41731454,0.00012878,2]
[325164319,1714545062702,-155.502148,0.00012878,2]
[325164320,1714545062711,-156.08581283,0.00012878,2]
[325164321,1714545062721,-151.0,0.00012878,2]
[325164322,1714545062731,-151.0,0.00012886,2]
[325164323,1714545062740,-151.0,0.00012886,2]
[325164324,1714545062749,-151.0,0.00012886,2]
[325164325,1714545062759,-151.0,0.00012886,2]
[325164326,1714545062768,-151.0,0.00012886,2]
[325164327,1714545062778,-151.0,0.00012886,2]
[325164328,1714545062788,-151.0,0.00012886,2]
[325164329,1714545062798,-204.189719,0.00012886,2]
[325164330,1714545062807,-151.0,0.00012886,2]
[325164331,1714545062817,-151.0,0.00012886,2]
[325164332,1714545062827,-151.0,0.00012886,2]
[325164333,1714545062836,-31070.2541065,0.00012886,2]
[325164334,1714545062846,-2136.2269998,0.00012886,2]
[325164335,1714545062855,-323.7251189,0.00012886,2]
[325164336,1714545062865,-78017.89727358,0.00012895,2]
[325164337,1714545062876,-179.805389,0.00012895,2]
[325164338,1714545062885,-151.0,0.00012895,2]
[325164339,1714545062894,-222.652717,0.00012895,2]
[325164340,1714545062904,-151.0,0.00012895,2]
[325164341,1714545062914,-151.0,0.00012895,2]
[325164342,1714545062927,-151.0,0.00012895,2]
[325164343,1714545062936,-151.0,0.00012895,2]
[325164344,1714545062945,-247.69924,0.00012895,2]
[325164345,1714545062955,-247.69924,0.00012895,2]
[325164346,1714545062966,-198.125252,0.00012895,2]
[325164347,1714545062975,-198.125252,0.00012895,2]
[325164348,1714545062984,-408.57913442,0.000129,2]
[325164349,1714545062994,-178.02364971,0.000129,2]
[325164350,1714545063007,-5323.0054565,0.000129,2]
[325164351,1714545063016,-1216.94,0.00012924,2]
[325164352,1714545063026,-157.16,0.00012952,2]
[325164353,1714545063036,-407.56083829,0.00012977,2]
[325164354,1714545063045,-39426.06670815,0.0001298,2]
[325164355,1714545063055,-2954.0,0.0001298,26]
[325164356,1714545063064,-151.0,0.0001298,2]
[325164357,1714545063074,-214.74057,0.0001298,2]
[325164358,1714545063083,-214.74057,0.0001298,2]
[325164359,1714545063093,-151.0,0.0001298,2]
[325164360,1714545063103,-151.0,0.0001298,2]
[325164361,1714545063112,-151.0,0.0001298,2]
[325164362,1714545063124,-151.0,0.0001298,2]
[325164363,1714545063133,-897.95083425,0.00012988,2]
[325164364,1714545063143,-9869.77818624,0.00012989,2]
[325164365,1714545063153,-339943.50332042,0.0001299,2]
[325164366,1714545063379,-71795.61550928,0.0001299,2]
[325164367,1714545063389,-2213.661789,0.0001299,2]
[325164368,1714545063399,-151.0,0.0001299,2]
[325164369,1714545063408,-151.0,0.0001299,2]
[325164370,1714545063418,-151.0,0.0001299,2]
[325164371,1714545063427,-151.0,0.0001299,2]
[325164372,1714545063437,-151.0,0.0001299,2]
[325164373,1714545063447,-151.0,0.0001299,2]
[325164374,1714545063458,-151.0,0.0001299,2]
[325164375,1714545063469,-151.0,0.0001299,2]
[325164376,1714545063479,-247.69924,0.0001299,2]
[325164377,1714545063488,-247.69924,0.0001299,2]
[325164378,1714545063498,-151.0,0.0001299,2]
[325164379,1714545063508,-198.125252,0.0001299,2]
[325164380,1714545063517,-198.125252,0.0001299,2]
[325164381,1714545063527,-258.0367,0.0001299,2]
[325164382,1714545063536,-151.0,0.0001299,2]
[325164383,1714545063545,-151.0,0.0001299,2]
[325164384,1714545063555,-202.387786,0.0001299,2]
[325164385,1714545063565,-151.0,0.0001299,2]
[325164386,1714545063575,-151.0,0.0001299,2]
[325164387,1714545063585,-151.0,0.0001299,2]
[325164388,1714545063594,-224.193238,0.0001299,2]
[325164389,1714545063604,-151.0,0.0001299,2]
[325164390,1714545063613,-151.0,0.0001299,2]
[325164391,1714545063624,-316.250237,0.0001299,2]
[325164392,1714545063634,-316.250237,0.0001299,2]
[325164393,1714545063644,-151.0,0.0001299,2]
[325164394,1714545063655,-151.0,0.0001299,2]
[325164395,1714545063664,-214.74057,0.0001299,2]
[325164396,1714545063674,-214.74057,0.0001299,2]
[325164397,1714545063686,-151.0,0.0001299,2]
[325164398,1714545063857,-151.0,0.0001299,2]
[325164399,1714545063867,-151.0,0.0001299,2]
[325164400,1714545063878,-151.0,0.0001299,2]
[325164401,1714545063887,-151.0,0.0001299,2]
[325164402,1714545063895,-151.0,0.0001299,2]
[325164403,1714545063905,-451.252231,0.0001299,2]
[325164404,1714545063915,-286.144597,0.0001299,2]
[325164405,1714545063925,-451.252231,0.0001299,2]
[325164406,1714545063936,-151.0,0.0001299,2]
[325164407,1714545063946,-265.839517,0.0001299,2]
[325164408,1714545063955,-265.839517,0.0001299,2]
[325164409,1714545063965,-151.0,0.0001299,2]
[325164410,1714545063974,-407.236825,0.0001299,2]
[325164411,1714545063984,-407.236825,0.0001299,2]
[325164412,1714545063994,-151.0,0.0001299,2]
[325164413,1714545064005,-463.439166,0.0001299,2]
[325164414,1714545064016,-463.439166,0.0001299,2]
[325164415,1714545064025,-10000.0,0.0001299,2]
[325164416,1714545064035,-151.0,0.0001299,2]
[325164417,1714545064044,-151.0,0.0001299,2]
[325164418,1714545064054,-10000.0,0.0001299,2]
[325164419,1714545064064,-151.0,0.0001299,2]
[325164420,1714545064074,-151.0,0.0001299,2]
[325164421,1714545064084,-205.16816713,0.0001299,2]
[325164422,1714545064098,-30.85761887,0.0001299,2]
[325164423,1714545064107,-236.025786,0.0001299,2]
[325164424,1714545064117,-468.434218,0.0001299,2]
[325164425,1714545064129,-72.18239713,0.0001299,2]
[325164426,1714545064140,-78.81760287,0.0001299,2]
[325164427,1714545064149,-468.434218,0.0001299,2]
[325164428,1714545064159,-351.257035,0.0001299,2]
[325164429,1714545064168,-351.257035,0.0001299,2]
[325164430,1714545064178,-2250.03410913,0.00012993,2]
[325164431,1714545064190,-1928.1375,0.00012993,2]
[325164432,1714545064201,-6634.09999999,0.00012993,2]
[325164433,1714545064212,-362.26956143,0.00012993,2]
[325164434,1714545064241,-562.73626016,0.00012777,2]
[325164435,1714545064251,-996.52,0.00012876,2]
[325164436,1714545064260,-5004.0843925,0.00012993,2]
[325164437,1714545064271,-9148.80644522,0.00012993,2]
[325164438,1714545064280,-155.19733578,0.00012998,2]
[325164439,1714545064289,-202.16514885,0.00012998,2]
[325164440,1714545064298,-109074.68479076,0.00013,2]
[325164441,1714545064310,-8165.80375038,0.00013,2]
[325164442,1714545064326,-568.37329392,0.00013,2]
[325164443,1714545064338,-853.99917318,0.00013,2]
[325164444,1714545064349,-711.47480719,0.00013,2]
[325164445,1714545064360,-5612.89428964,0.00013,2]
[325164446,1714545064738,-500.0,0.00010958,2]
[325164447,1714545064748,-380.21195323,0.00010958,2]
[325164448,1714545064760,-119.78804677,0.00010958,2]
[325164449,1714545064771,-500.0,0.00010958,2]
[325164450,1714545064781,-500.0,0.00010958,2]
[325164451,1714545064791,-500.0,0.00010958,2]
[325164452,1714545064801,-500.0,0.00010958,2]
[325164453,1714545064811,-500.0,0.00011232,2]
[325164454,1714545064821,-500.0,0.00011506,2]
[325164455,1714545064830,-500.0,0.0001178,2]
[325164456,1714545064839,-1228.0,0.00012138,2]
[325164457,1714545064849,-3698.28396711,0.00013,2]
[325164458,1714545065662,-536.83,0.00012054,2]
[325164459,1714545065672,-23577.43977452,0.00013,2]
[325164460,1714545065700,-500.0,0.00010958,2]
[325164461,1714545065710,-367.11870689,0.00013,2]
[325164462,1714545065996,-500.0,0.00010958,2]
[325164463,1714545066006,-500.0,0.00010958,2]
[325164464,1714545066015,-500.0,0.00010958,2]
[325164465,1714545066026,-500.0,0.00010958,2]
[325164466,1714545066034,-416.80806396,0.00010958,2]
[325164467,1714545066043,-34.13223604,0.00010958,2]
[325164468,1714545066071,-453.32000598,0.00010958,2]
[325164469,1714545066083,-12.54775798,0.00010958,2]
[325164470,1714545066092,-254.93977156,0.00011232,2]
[325164471,1714545066102,-500.0,0.00011232,2]
[325164472,1714545066110,-562.73626014,0.00012839,2]
[325164473,1714545066119,-5686.1645157,0.00013,2]
[325164474,1714545066133,-26612.50580397,0.00013,2]
[325164475,1714545066144,-255.637,0.00013,2]
[325164476,1714545066155,-2460.98823099,0.00013,2]
[325164477,1714545066167,-2228.00726279,0.00013,2]
[325164481,1714545135588,341.78605406,9.9e-05,2]
[325164482,1714545135615,1024.83134929,9.9e-05,2]
[325164483,1714545135645,1073.99187308,9.9e-05,2]
[325164484,1714545135672,1234.87276862,9.9e-05,2]
[325164485,1714545135703,1158.57574013,9.9e-05,2]
[325164486,1714545135730,976.72100074,9.9e-05,2]
[325164487,1714545135751,6976.21701408,9.9e-05,2]
[325164489,1714545306716,479.22,8.883e-05,2]
[325164491,1714545587620,-427.51019987,0.00010441,2]
[325164492,1714545587643,-781.96889708,0.00010441,2]
[325164493,1714545601164,1209.47909695,0.00010436,2]
[325164494,1714545601195,209.47909695,0.00010436,2]
[325164495,1714545601219,31.3118061,0.00010436,2]
[325164496,1714545627551,178.16729085,0.0001028,2]
[325164497,1714545766837,-21.83270915,0.0001028,2]
[325164498,1714545766870,-845.47730764,0.00010443,2]
[325164499,1714545766906,-150.0,0.00010443,2]
[325164500,1714545766927,-21.83270915,0.00010444,2]
[325164501,1714545767156,-845.47730764,0.00010444,2]
[325164502,1714545767183,-150.0,0.00010444,2]
[325164503,1714545767195,-7865.37996642,0.00010444,2]
[325164504,1714545779503,479.52,8.407e-05,2]
[325164505,1714545843445,-18113.0,0.00010285,2]
[325164509,1714545872088,-3054.0,0.00010285,2]
[325164513,1714545922958,-635.0,0.00010285,2]
[325164514,1714545922972,-2088.0,0.00010285,2]
[325164515,1714545922981,-390.02,0.00010285,2]
[325164516,1714545922991,-244.98,0.00010287,2]
[325164565,1714546233759,-1000.0,0.00010159,2]
[325164566,1714546233768,-1631.79,0.00010192,2]
[325164567,1714546233778,-182.87,0.00010237,2]
[325164568,1714546233789,-151.9,0.00010252,2]
[325164569,1714546233799,-5.02,0.00010287,2]
[325164572,1714546233808,-208.91,0.00010364,2]
[325164573,1714546233818,-230.30671639,0.00010444,2]
[325164574,1714546233828,-222.27,0.00010444,2]
[325164575,1714546233838,-160.18,0.00010464,2]
[325164576,1714546233848,-150.0,0.00010575,2]
[325164577,1714546233858,-157.97636738,0.00010599,2]
[325164578,1714546233867,-479.52,0.00010671,2]
[325164579,1714546233877,-873.6047,0.00010702,2]
[325164580,1714546233887,-157.97636736,0.00010777,2]
[325164581,1714546233897,-428.54752566,0.00010951,2]
[325164582,1714546233907,-157.97636736,0.00010954,2]
[325164583,1714546233917,-214.24052737,0.00010956,2]
[325164584,1714546233928,-189.84945054,0.00010956,2]
[325164585,1714546234127,-782.7917937,0.00010957,2]
[325164586,1714546234137,-8386.99119289,0.00010957,2]
[325164587,1714546234146,-500.0,0.00010958,2]
[325164588,1714546234155,-501.00525797,0.00010958,2]
[325164589,1714546234165,-500.0,0.00010958,2]
[325164590,1714546234174,-500.8083342,0.00010958,2]
[325164591,1714546234184,-500.0,0.00010958,2]
[325164593,1714546234194,-500.0,0.00010958,2]
[325164595,1714546234203,-510.1558179,0.00010958,2]
[325164597,1714546234212,-500.0,0.00010958,2]
[325164599,1714546234222,-500.0,0.00010958,2]
[325164601,1714546234231,-500.0,0.00010958,2]
[325164603,1714546234241,-501.03323049,0.00010958,2]
[325164605,1714546234251,-288.16674072,0.00010958,2]
[325164607,1714546234260,-500.0,0.00010958,2]
[325164609,1714546234270,-501.71684653,0.00010958,2]
[325164611,1714546234279,-502.23099516,0.00010958,2]
[325164613,1714546234290,-500.0,0.00010958,2]
[325164615,1714546234299,-501.97918491,0.00010958,2]
[325164617,1714546234310,-516.49739444,0.00010958,2]
[325164619,1714546234320,-553.95851005,0.00010958,2]
[325164621,1714546234328,-500.0,0.00010958,2]
[325164623,1714546234338,-155.0,0.00010958,2]
[325164625,1714546234348,-500.0,0.00010958,2]
[325164627,1714546234357,-500.0,0.00010958,2]
[325164629,1714546234368,-500.0,0.00010958,2]
[325164631,1714546234377,-243.88662436,0.00010958,2]
[325164633,1714546234387,-500.0,0.00010958,2]
[325164635,1714546234397,-504.84371182,0.00010958,2]
[325164637,1714546234406,-500.0,0.00010958,2]
[325164639,1714546234415,-502.85935838,0.00010958,2]
[325164641,1714546234424,-500.0,0.00010958,2]
[325164642,1714546234434,-224.69670016,0.00010958,2]
[325164645,1714546234444,-500.0,0.00010958,2]
[325164646,1714546234454,-500.0,0.00010958,2]
[325164648,1714546234465,-500.0,0.00010958,2]
[325164650,1714546234474,-500.0,0.00010958,2]
[325164652,1714546234483,-500.0,0.00010958,2]
[325164654,1714546234492,-515.4046608,0.00010958,2]
[325164656,1714546234502,-500.0,0.00010958,2]
[325164658,1714546234511,-500.0,0.00010958,2]
[325164660,1714546234520,-501.56640998,0.00010958,2]
[325164662,1714546234529,-500.0,0.00010958,2]
[325164665,1714546234539,-500.33691369,0.00010958,2]
[325164667,1714546234550,-513.23929381,0.00010958,2]
[325164668,1714546234559,-500.0,0.00010958,2]
[325164671,1714546234569,-500.0,0.00010958,2]
[325164672,1714546234578,-500.0,0.00010958,2]
[325164674,1714546234587,-500.0,0.00010958,2]
[325164676,1714546234596,-500.0,0.00010958,2]
[325164678,1714546234606,-500.0,0.00010958,2]
[325164681,1714546234616,-508.97331629,0.00010958,2]
[325164683,1714546234625,-570.65333111,0.00010958,2]
[325164684,1714546234636,-509.00901782,0.00010958,2]
[325164686,1714546234646,-511.39208981,0.00010958,2]
[325164688,1714546234655,-559.65684753,0.00010958,2]
[325164691,1714546234664,-385.40842683,0.00010958,2]
[325164693,1714546234674,-224.64639768,0.00010958,2]
[325164694,1714546234683,-500.0,0.00010958,2]
[325164696,1714546234692,-500.0,0.00010958,2]
[325164699,1714546234702,-500.0,0.00010958,2]
[325164700,1714546234711,-501.5928049,0.00010958,2]
[325164703,1714546234721,-500.0,0.00010958,2]
[325164705,1714546234730,-500.0,0.00010958,2]
[325164707,1714546234740,-500.0,0.00010958,2]
[325164709,1714546234749,-500.0,0.00010958,2]
[325164711,1714546234758,-500.0,0.00010958,2]
[325164713,1714546234768,-500.0,0.00010958,2]
[325164715,1714546234777,-500.0,0.00010958,2]
[325164717,1714546234786,-500.0,0.00010958,2]
[325164719,1714546234796,-500.0,0.00010958,2]
[325164720,1714546234805,-500.0,0.00010958,2]
[325164722,1714546234814,-269.03,0.00010958,2]
[325164726,1714546234833,-500.0,0.00010958,2]
[325164728,1714546234846,-500.0,0.00010958,2]
[325164730,1714546234856,-500.0,0.00010958,2]
[325164732,1714546234866,-500.0,0.00010958,2]
[325164734,1714546234876,-500.0,0.00010958,2]
[325164736,1714546234886,-500.0,0.00010958,2]
[325164738,1714546234896,-500.0,0.00010958,2]
[325164740,1714546234906,-500.0,0.00010958,2]
[325164742,1714546234915,-500.0,0.00010958,2]
[325164745,1714546234925,-500.0,0.00010958,2]
[325164747,1714546234935,-517.69264602,0.00010958,2]
[325164749,1714546234944,-500.0,0.00010958,2]
[325164751,1714546234953,-500.0,0.00010958,2]
[325164753,1714546234963,-500.0,0.00010958,2]
[325164755,1714546234972,-349.03623696,0.00010958,2]
[325164757,1714546234982,-552.21899348,0.00010958,2]
[325164759,1714546234991,-500.0,0.00010958,2]
[325164761,1714546235001,-500.0,0.00010958,2]
[325164763,1714546235011,-506.33145299,0.00010958,2]
[325164765,1714546235021,-500.0,0.00010958,2]
[325164767,1714546235030,-500.0,0.00010958,2]
[325164769,1714546235040,-504.9623471,0.00010958,2]
[325164771,1714546235049,-516.32136329,0.00010958,2]
[325164773,1714546235059,-500.0,0.00010958,2]
[325164775,1714546235068,-500.0,0.00010958,2]
[325164777,1714546235079,-597.93,0.00010958,2]
[325164779,1714546235088,-510.15613009,0.00010958,2]
[325164781,1714546235097,-500.0,0.00010958,2]
[325164783,1714546235107,-500.0,0.00010958,2]
[325164786,1714546235116,-222.92580807,0.00010958,2]
[325164788,1714546235126,-500.0,0.00010958,2]
[325164790,1714546235137,-500.0,0.00010958,2]
[325164792,1714546235147,-500.0,0.00010958,2]
[325164794,1714546235159,-500.37780327,0.00010958,2]
[325164796,1714546235169,-221.05712922,0.00010958,2]
[325164798,1714546235179,-500.0,0.00010958,2]
[325164800,1714546235189,-508.99131274,0.00010958,2]
[325164802,1714546235198,-500.0,0.00010958,2]
[325164804,1714546235208,-500.0,0.00010958,2]
[325164806,1714546235218,-258.4555924,0.00010958,2]
[325164808,1714546235228,-573.47989439,0.00010958,2]
[325164810,1714546235237,-500.0,0.00010958,2]
[325164812,1714546235247,-500.0,0.00010958,2]
[325164815,1714546235257,-500.0,0.00010958,2]
[325164817,1714546235266,-500.0,0.00010958,2]
[325164819,1714546235282,-500.0,0.00010958,2]
[325164821,1714546235293,-500.0,0.00010958,2]
[325164823,1714546235303,-500.0,0.00010958,2]
[325164825,1714546235312,-500.0,0.00010958,2]
[325164827,1714546235323,-500.0,0.00010958,2]
[325164829,1714546235333,-500.0,0.00010958,2]
[325164831,1714546235343,-500.0,0.00010958,2]
[325164833,1714546235352,-500.0,0.00010958,2]
[325164835,1714546235362,-500.0,0.00010958,2]
[325164837,1714546235372,-500.0,0.00010958,2]
[325164839,1714546235381,-500.0,0.00010958,2]
[325164841,1714546235391,-500.0,0.00010958,2]
[325164843,1714546235401,-500.0,0.00010958,2]
[325164845,1714546235410,-276.53210215,0.00010958,2]
[325164847,1714546235420,-500.0,0.00010958,2]
[325164849,1714546235429,-503.67858053,0.00010958,2]
[325164852,1714546235439,-500.0,0.00010958,2]
[325164854,1714546235450,-500.0,0.00010958,2]
[325164856,1714546235463,-500.0,0.00010958,2]
[325164858,1714546235473,-500.0,0.00010958,2]
[325164860,1714546235482,-500.0,0.00010958,2]
[325164862,1714546235492,-500.0,0.00010958,2]
[325164864,1714546235501,-500.0,0.00010958,2]
[325164866,1714546235511,-500.0,0.00010958,2]
[325164868,1714546235521,-514.80055367,0.00010958,2]
[325164870,1714546235530,-500.0,0.00010958,2]
[325164872,1714546235540,-514.13298855,0.00010958,2]
[325164874,1714546235550,-500.0,0.00010958,2]
[325164876,1714546235560,-500.0,0.00010958,2]
[325164878,1714546235570,-500.0,0.00010958,2]
[325164880,1714546235580,-500.0,0.00010958,2]
[325164882,1714546235589,-500.0,0.00010958,2]
[325164884,1714546235599,-500.0,0.00010958,2]
[325164887,1714546235609,-500.0,0.00010958,2]
[325164889,1714546235619,-500.0,0.00010958,2]
[325164891,1714546235628,-500.0,0.00010958,2]
[325164893,1714546235640,-500.0,0.00010958,2]
[325164895,1714546235649,-500.0,0.00010958,2]
[325164897,1714546235659,-500.0,0.00010958,2]
[325164899,1714546235668,-523.31518995,0.00010958,2]
[325164901,1714546235678,-500.0,0.00010958,2]